{"text_format":"1","workbook":"xlsx","n_sheets":15,"sheets":["はじめに","開催計画書","財務調査票","予算・決算書","経費票","領収証","セミナー会員名簿","セミナー非会員名簿","セミナー学生名簿","フォーラム会員名簿","フォーラム非会員名簿","フォーラム学生会員名簿","フォーラム学生非会員名簿","事務用品チェック表","マスター"],"not_rendered":{"charts":0,"images":0,"macros":1,"external_links":0,"defined_names":5,"comments":2,"pivot_tables":0},"unopened":[],"bounds":{"document_bytes":16777216,"sheet_cells":100000,"rows_first":2000,"rows_last":500,"rows_between":2000,"halvings":0,"cell_chars":16384,"cell_head_chars":4096},"cells_cut":0,"cells_raw":0,"read":"whole","date_system":"1900"}

{"sheet":"はじめに","index":0,"n_rows":48,"n_cols":5,"rows_kept":48,"cut":false,"hidden":false,"merged":[[7,1,7,3],[8,1,8,3],[0,1,0,3],[1,1,1,3],[2,1,2,3],[3,1,3,3],[6,1,6,3],[5,1,5,3]]}
[null,"必須入力"]
["事業名",null,null,null,"←プルダウンメニューから選択"]
["共催・後援",null,null,null,"←プルダウンメニューから選択"]
["開催日",null,null,null,"←yyyy/mm/dd形式で入力"]
["開催時刻",null,"～"]
["開催場所",null,null,null,"←例；駒澤大学（東京都世田谷区）"]
["担当班・委員会",null,null,null,"←プルダウンメニューから選択"]
["班長・委員長・報告者",null,null,null,"←テキスト入力"]
["担当財務委員",null,null,null,"←テキスト入力"]
[]
[]
[]
[]
["班長・委員長様へ"]
["開催前"]
[null,"3か月前までに (1)事業計画書兼報告書，(2)財務調査票を記入して，下記へ送信してください"]
[null,null,"研究委員会委員長"]
[null,null,"担当財務委員"]
[]
[]
["開催後"]
[null,"ただちに経費票，領収書，参加者名簿をスキャンするか，デジカメ（スマホ，携帯でも可）で撮影し，下記へメール送信してください"]
[null,null,"担当財務委員"]
[]
[]
[null,"ただちに経費票，領収書，参加者名簿の原本を，下記までご持参または郵送ください．"]
[null,null,"東京支部事務局"]
[]
[null,"ただちに残金を下記までご持参いただくか，お振込みください（振込先は担当財務にお尋ねください）．"]
[null,null,"東京支部事務局"]
[]
[]
[null,"事業後2週間を目途に事業計画書兼報告書を完成させ，下記へメール送信してください"]
[null,null,"担当財務委員"]
[null,null,"研究委員会委員長"]
[null,null,"総務委員会委員長"]
[null,null,"東京支部事務局"]
[]
[]
[]
[]
[]
[]
[]
[]
[]
["※このファイルにはマクロが組み込まれています"]
["※マクロを無効にしても使用できますが，自動入力が行われません．"]

{"sheet":"開催計画書","index":1,"n_rows":41,"n_cols":13,"rows_kept":41,"cut":false,"hidden":false,"merged":[[34,0,34,1],[30,0,30,1],[8,0,8,1],[9,0,9,1],[10,0,10,1],[33,0,33,1],[11,0,11,1],[11,6,11,7],[11,8,11,10],[11,2,11,5],[3,3,3,6],[0,0,0,11],[1,7,1,11],[6,6,7,7],[6,10,7,10],[7,8,7,9],[6,0,7,5],[4,0,4,5],[6,8,6,9],[8,2,8,10],[9,2,9,10],[10,2,10,10]]}
["　予算立案時（事業開催3ヶ月前）も見込みで記載してください"]
["支部長","副支部長","財務理事",null,null,null,null,"2018-03-01",null,null,null,null,"←yyyy/mm/dd形式で入力"]
[]
[null,null,null,"事　業　報　告　書"]
["公益社団法人　日本放射線技術学会　東京支部支部長　殿"]
[]
[null,null,null,null,null,null,"開催報告書",null," 報告者氏名",null,"印"]
[null,null,null,null,null,null,null,null,null,null,null,null,"←自動入力"]
["開 催 日 時",null,"  ～",null,null,null,null,null,null,null,null,null,"←自動入力"]
["開 催 場 所",null,null,null,null,null,null,null,null,null,null,null,"←自動入力"]
["テーマ",null,"　"]
["担当委員会・班名",null,null,null,null,null,"委員長・班長名",null,null,null,null,null,"←自動入力"]
[" 実行委員・班員名",null,null,"　","　","　","　","　","　"]
[]
[]
["　"]
["　プログラム（演題名・講師名など）"]
[null,"　"]
[null,"　"]
[null,"　"]
[null,"　"]
[null,"　","　"]
[null,"　"]
[null,"　"]
[]
[]
[]
[]
[]
[]
["参加者総数",null,null,"名","会　員",null,"名","学生会員",null,"名"]
[null,"　",null,null,"非会員",null,"名","学生非会員",null,"名","　"]
["　",null,"　"]
["（　添　付　）",null,"　　　・決算報告書　　　資料等があれば　１部"]
["　"]
["　　開催後２週間以内を目途に提出して下さい　　"]
[]
[]
[null,null,null,null,null,null,null,"※このシートには「印刷範囲」が設定してあります"]
[null,null,null,null,null,null,null,"通常通り印刷すれば白抜きの範囲が印刷されます"]
[null,null,null,null,null,null,null,"このページは総務委員会が管理しています．"]

{"sheet":"財務調査票","index":2,"n_rows":44,"n_cols":8,"rows_kept":44,"cut":false,"hidden":false,"merged":[[1,6,1,7]]}
[]
[null,null,null,null,null,null,"交通費（財務委員が記載）"]
[null,"氏名","所属名称\n","職制\n（医師，技師，物理士）","日放技の会員ですか？","所属研究班員ですか？","雑費","運賃"]
["演者1",null,"班員ならば記載不要","班員ならば記載不要","yes/no/不明","yes/no/不明"]
["演者2",null,"班員ならば記載不要","班員ならば記載不要","yes/no/不明","yes/no/不明"]
["演者3",null,"班員ならば記載不要","班員ならば記載不要","yes/no/不明","yes/no/不明"]
["演者4",null,"班員ならば記載不要","班員ならば記載不要","yes/no/不明","yes/no/不明"]
["演者5",null,"班員ならば記載不要","班員ならば記載不要","yes/no/不明","yes/no/不明"]
[]
["チューター1",null,"班員ならば記載不要","班員ならば記載不要","yes/no/不明","yes/no/不明"]
["チューター2",null,"班員ならば記載不要","班員ならば記載不要","yes/no/不明","yes/no/不明"]
["チューター3",null,"班員ならば記載不要","班員ならば記載不要","yes/no/不明","yes/no/不明"]
["チューター4",null,"班員ならば記載不要","班員ならば記載不要","yes/no/不明","yes/no/不明"]
["チューター5",null,"班員ならば記載不要","班員ならば記載不要","yes/no/不明","yes/no/不明"]
["チューター6",null,"班員ならば記載不要","班員ならば記載不要","yes/no/不明","yes/no/不明"]
["チューター7",null,"班員ならば記載不要","班員ならば記載不要","yes/no/不明","yes/no/不明"]
["チューター8",null,"班員ならば記載不要","班員ならば記載不要","yes/no/不明","yes/no/不明"]
["チューター9",null,"班員ならば記載不要","班員ならば記載不要","yes/no/不明","yes/no/不明"]
["チューター10",null,"班員ならば記載不要","班員ならば記載不要","yes/no/不明","yes/no/不明"]
[]
["受付・会場係・座長1",null,"班員ならば記載不要","班員ならば記載不要","yes/no/不明","yes/no/不明"]
["受付・会場係・座長2",null,"班員ならば記載不要","班員ならば記載不要","yes/no/不明","yes/no/不明"]
["受付・会場係・座長3",null,"班員ならば記載不要","班員ならば記載不要","yes/no/不明","yes/no/不明"]
["受付・会場係・座長4",null,"班員ならば記載不要","班員ならば記載不要","yes/no/不明","yes/no/不明"]
["受付・会場係・座長5",null,"班員ならば記載不要","班員ならば記載不要","yes/no/不明","yes/no/不明"]
["受付・会場係・座長6",null,"班員ならば記載不要","班員ならば記載不要","yes/no/不明","yes/no/不明"]
["受付・会場係・座長7",null,"班員ならば記載不要","班員ならば記載不要","yes/no/不明","yes/no/不明"]
["受付・会場係・座長8",null,"班員ならば記載不要","班員ならば記載不要","yes/no/不明","yes/no/不明"]
["受付・会場係・座長9",null,"班員ならば記載不要","班員ならば記載不要","yes/no/不明","yes/no/不明"]
["受付・会場係・座長10",null,"班員ならば記載不要","班員ならば記載不要","yes/no/不明","yes/no/不明"]
["※他の役委員や学生が手伝う予定があるときは，上に記載してください．"]
[]
[]
[]
[]
["会場賃借料（概算）"]
[]
["チラシ印刷費"]
[]
["※セミナーのみ"]
["弁当配布","する/しない"]
["弁当代負担","部会/企業"]
[]
["その他の経費"]

{"sheet":"予算・決算書","index":3,"n_rows":46,"n_cols":7,"rows_kept":46,"cut":false,"hidden":false,"merged":[[32,0,36,4],[0,0,0,4],[3,1,3,4],[2,1,2,4],[4,1,4,4],[5,1,5,4]]}
[]
[null,null,null,null,"2018-03-01","←yyyy/mm/dd形式で入力"]
["事業名称"]
["開催日時","  ～"]
["主催","公益社団法人日本放射線技術学会東京支部"]
["共催・後援"]
[]
["科目",null,"予算額","決算額","摘要"]
["事業活動収入"]
["受取会費収入（会員）",null,0,0]
["受取会費収入（非会員）",null,0,0]
["受取会費収入（学生非会員）",null,0,0]
["学術大会事業収入",null,0,0]
["助成金",null,0,0]
["雑収入",null,0,0]
[]
["事業活動収入合計",null,{"$f":"SUM(C10:C15)","v":0},{"$f":"SUM(D10:D13)","v":0}]
["事業活動支出"]
["旅費交通費",null,0,0]
["会議費",null,0,0]
["諸謝金",null,0,0]
["印刷製本費",null,0,0]
["通信運搬費",null,0,0]
["賃借料",null,0,0]
["委託費",null,0,0]
["消耗品費",null,0,0]
["雑費",null,0,0]
[]
["事業活動支出合計",null,{"$f":"SUM(C19:C27)","v":0},{"$f":"SUM(D19:D27)","v":0}]
[]
["収支差額",null,{"$f":"C17-C29","v":0},{"$f":"D17-D29","v":0}]
["備　　　考"]
[null,null,null,null,null,"←このセル内で改行するには...."]
[null,null,null,null,null,"Windows","Altキー+Enterキー"]
[null,null,null,null,null,"Mac","option + command + return"]
[]
[]
[null,null,null,null,"担当財務委員："]
[]
[null,null,null,"担当委員会・班名",null,"←自動入力"]
[null,null,null,"報告者",null,"←自動入力"]
[]
[]
[null,null,null,null,"※このシートには「印刷範囲」が設定してあります"]
[null,null,null,null,"通常通り印刷すれば白抜きの範囲が印刷されます"]
[null,null,null,null,"このページは財務委員会が管理しています．"]

{"sheet":"経費票","index":4,"n_rows":22,"n_cols":8,"rows_kept":22,"cut":false,"hidden":false,"merged":[[0,0,1,5],[2,0,2,5],[3,0,3,5],[4,5,4,6]]}
[null,null,null,null,null,null,"支部長特別決済"]
[null,null,null,null,null,null,null,"←自動入力"]
[null,null,null,null,null,null,null,"←自動入力"]
["  ～",null,null,null,null,null,null,"←自動入力"]
[null,"氏名","雑費","運賃","合計","印またはサイン"]
[null,null,null,null,{"$f":"C6+D6","v":0}]
[null,null,null,null,{"$f":"C7+D7","v":0}]
[null,null,null,null,0]
[null,null,null,null,0]
[null,null,null,null,0]
[null,null,null,null,0]
[null,null,null,null,0]
[null,null,null,null,0]
[null,null,null,null,0]
[null,null,null,null,0]
[null,null,null,null,0]
[null,null,null,null,0]
[null,null,null,null,0]
[null,null,null,null,0]
[null,null,null,null,0]
[null,null,null,null,0]
[null,null,null,null,null,null,"公益社団法人日本放射線技術学会東京支部"]

{"sheet":"領収証","index":5,"n_rows":37,"n_cols":6,"rows_kept":37,"cut":false,"hidden":false,"merged":[[15,0,15,5],[25,1,25,5],[26,1,26,5],[32,4,32,5],[19,0,20,1],[19,3,19,4],[23,0,23,5],[28,4,29,4],[28,5,29,5],[31,0,31,1],[31,2,31,3],[31,4,31,5],[34,0,34,5],[0,3,0,4],[9,4,10,4],[9,5,10,5],[4,0,4,5],[0,0,1,1],[6,1,6,5],[7,1,7,5],[12,0,12,1],[12,2,12,3],[12,4,12,5],[13,0,13,1],[13,2,13,3],[13,4,13,5],[32,0,32,1],[32,2,32,3]]}
["領収証",null,null,"平成　　　年　　　月　　　日",null,"支部長特別決済"]
[]
["公益社団法人　日本放射線技術学会東京支部　殿"]
[]
[{"$f":"IF(AND(E14=\"\",F10=\"\"),\"\\　　        　　　※\",IF(F10=\"\",E14,IF(E14=\"\",F10,E14+F10)))","v":"\\　　        　　　※"}]
[]
["出発地"]
["開催地"]
[null,"市外運賃","特急料金","宿泊","市内交通費","支給額"]
["往路",null,null,null,null,{"$f":"IF(SUM(B10:C11,E10,D10)=0,\"\",SUM(B10:C11,E10,D10*10000))","v":""}]
["復路",null,null,"(10,000/泊)"]
[]
["謝金　支給額（手取り額）①",null,"所得税，復興特別税②",null,"支給額①＋②"]
[null,null,{"$f":"IF(A14=\"\",\"\",E14-A14)","v":""},null,{"$f":"IF(ROUNDDOWN(A14/0.8979,0)=0,\"\",(ROUNDDOWN(A14/0.8979,0)))","v":""}]
[]
["但し、"]
["住所"]
["氏名",null,null,null,null,"印"]
[]
["領収証",null,null,"平成　　　年　　　月　　　日",null,"支部長特別決済"]
[]
["公益社団法人　日本放射線技術学会東京支部　殿"]
[]
[{"$f":"IF(AND(E33=\"\",F29=\"\"),\"\\　　        　　　※\",IF(F29=\"\",E33,IF(E33=\"\",F29,E33+F29)))","v":"\\　　        　　　※"}]
[]
["出発地"]
["開催地"]
[null,"市外運賃","特急料金","宿泊","市内交通費","支給額"]
["往路",null,null,null,null,{"$f":"IF(SUM(B29:C30,E29,D29)=0,\"\",SUM(B29:C30,E29,D29*10000))","v":""}]
["復路",null,null,"(10,000/泊)"]
[]
["謝金　支給額（手取り額）①",null,"所得税，復興特別税②",null,"支給額①＋②"]
[null,null,{"$f":"IF(A33=\"\",\"\",E33-A33)","v":""},null,{"$f":"IF(ROUNDDOWN(A33/0.8979,0)=0,\"\",(ROUNDDOWN(A33/0.8979,0)))","v":""}]
[]
["但し、"]
["住所"]
["氏名",null,null,null,null,"印"]

{"sheet":"セミナー会員名簿","index":6,"n_rows":21,"n_cols":4,"rows_kept":21,"cut":false,"hidden":false,"merged":[]}
["正会員（4,000円）参加名簿",null,null,"\r\n"]
["No.","会員番号","氏　名　","所属施設"]
[]
[]
[]
[]
[]
[]
[]
[]
[]
[]
[]
[]
[]
[]
[]
[]
["「会員」とは日本放射線技術学会の会員および賛助会員企業の社員（2名まで）を指します．"]
["東京支部以外の地方組織に所属している方も会員扱いになります．"]
["入会申し込み手続き中は会員扱いになります．"]

{"sheet":"セミナー非会員名簿","index":7,"n_rows":20,"n_cols":4,"rows_kept":20,"cut":false,"hidden":false,"merged":[]}
["非会員（10,000円）参加名簿",null,null,"\r\n"]
["No.","会員番号","氏　名　","所属施設"]
[]
[]
[]
[]
[]
[]
[]
[]
[]
[]
[]
[]
[]
[]
[]
[]
["東京支部以外の地方組織に所属している方は会員扱いになります．"]
["入会申し込み手続き中は会員扱いになります．"]

{"sheet":"セミナー学生名簿","index":8,"n_rows":21,"n_cols":4,"rows_kept":21,"cut":false,"hidden":false,"merged":[]}
["学生（3,000円）参加名簿",null,null,"\r\n"]
["No.","会員番号","氏　名　","所属施設"]
[]
[]
[]
[]
[]
[]
[]
[]
[]
[]
[]
[]
[]
[]
[]
[]
["「学生」とは専ら学業を行い，放射線技師学校，大学，大学院に就学している者を指す．"]
["学生会員，学生非会員は区別しない．"]
["学生証を確認すること．"]

{"sheet":"フォーラム会員名簿","index":9,"n_rows":21,"n_cols":5,"rows_kept":21,"cut":false,"hidden":false,"merged":[]}
["正会員（1,000円）参加名簿"]
["No.","会員番号","氏　名　","所属施設","入会特典者(*)　　　　　会費　0円　　　　　　　　　　　　　　"]
[]
[]
[]
[]
[]
[]
[]
[]
[]
[]
[]
[]
[]
[]
[]
["「会員」とは日本放射線技術学会の会員を指します．"]
["東京支部以外の地方組織に所属している方も会員扱いになります．"]
["入会申し込み手続き中は会員扱いになります．"]
["(＊）入会特典者　入会促進キャンペーンで入会した方に適用　（特典ハガキと会員カードの提示が必要）"]

{"sheet":"フォーラム非会員名簿","index":10,"n_rows":20,"n_cols":4,"rows_kept":20,"cut":false,"hidden":false,"merged":[]}
["非会員（2,000円）参加名簿",null,null,"\r\n"]
["No.","会員番号","氏　名　","所属施設"]
[]
[]
[]
[]
[]
[]
[]
[]
[]
[]
[]
[]
[]
[]
[]
[]
["東京支部以外の地方組織に所属している方は会員扱いになります．"]
["入会申し込み手続き中は会員扱いになります．"]

{"sheet":"フォーラム学生会員名簿","index":11,"n_rows":19,"n_cols":4,"rows_kept":19,"cut":false,"hidden":false,"merged":[]}
["学生会員（無料）参加名簿",null,null,"\r\n"]
["No.","会員番号","氏　名　","所属施設"]
[]
[]
[]
[]
[]
[]
[]
[]
[]
[]
[]
[]
[]
[]
[]
[]
["日本放射線技術学会学生会員証を提示した者"]

{"sheet":"フォーラム学生非会員名簿","index":12,"n_rows":20,"n_cols":4,"rows_kept":20,"cut":false,"hidden":false,"merged":[]}
["学生非会員（500円）参加名簿",null,null,"\r\n"]
["No.","会員番号","氏　名　","所属施設"]
[]
[]
[]
[]
[]
[]
[]
[]
[]
[]
[]
[]
[]
[]
[]
[]
["学生証を提示した者．"]
["大学生，大学院生，専門学校生"]

{"sheet":"事務用品チェック表","index":13,"n_rows":23,"n_cols":3,"rows_kept":23,"cut":false,"hidden":false,"merged":[[0,0,0,2],[1,0,1,2],[22,0,22,2]]}
["PCと同日に発送致します．\n不要の場合は早めに事務局までご連絡ください。"]
["事務用品箱必要物品チェック表"]
["種類","○又は×","備考"]
["●プロジェクター"]
["●ボイスレコーダー"]
["●部会封筒(長3)"]
["●指示棒"]
["●手書き領収書(複写)"]
["●筆記用具セット7点"]
["筆記用具"]
["ハサミ"]
["カッター"]
["ホチキス"]
["クリップ"]
["セロテープ"]
["スタンプ台"]
["●パワーポインター"]
[]
[]
[]
[]
[]
["※上記以外の物品につきましては、事務局までお問い合わせください。"]

{"sheet":"マスター","index":14,"n_rows":47,"n_cols":3,"rows_kept":47,"cut":false,"hidden":false,"merged":[]}
["このページでは部会事業名，担当班・委員会，共催をプルダウンで選択するためのマスターを管理します．"]
["プルダウンに表示される項目は12行目から100行目に入力してください．"]
["空白のセルは無視されます．"]
["列を変更しますとプルダウンメニューが正しく表示されない可能性があります．"]
[]
[]
[]
[]
[]
["部会事業マスター","担当班・委員会マスター","共催マスター"]
[]
[" 第121回 東京支部セミナー","画像研究班","東京都診療放射線技師会"]
[" 第122回 東京支部セミナー","情報処理研究班","北海道支部"]
[" 第123回 東京支部セミナー","放射線・管理・防護・計測研究班","関東支部"]
[" 第124回 東京支部セミナー","核医学技術研究班","北海道，関東支部"]
[" 第125回 東京支部セミナー","放射線治療技術研究班"]
[" 第126回 東京支部セミナー","一般撮影技術研究班"]
[" 第127回 東京支部セミナー","ＣＴ撮影技術研究班"]
["第230回 東京支部技術フォーラム","ＭＲ撮像技術研究班"]
["第231回 東京支部技術フォーラム","消化器撮影技術研究班"]
["第232回 東京支部技術フォーラム","血管撮影技術研究班"]
["第233回 東京支部技術フォーラム","超音波技術研究班"]
["第234回 東京支部技術フォーラム","乳房撮影技術研究班"]
["第235回東京支部技術フォーラム","総務委員会"]
["第236回東京支部技術フォーラム","財務委員会"]
["第237回東京支部技術フォーラム","企画委員会"]
["第238回東京支部技術フォーラム","編集広報委員会"]
["第239回東京支部技術フォーラム","学術委員会"]
["第240回東京支部技術フォーラム","研究教育委員会"]
["第241回東京支部技術フォーラム","関連学委員会"]
["第242回東京支部技術フォーラム","国際化推進委員会"]
["第3回研究発表トレーニングキャンプ","第72回東京支部春期学術大会実行委員会"]
["第72回 東京支部春期学術大会　　  "]
["第16回東京支部関連施設見学会"]
["第2回東京支部学生向けセミナー"]
["第3回東京支部学生向けセミナー"]
["第4回東京支部学生向けセミナー"]
["第5回東京支部学生向けセミナー"]
["第18回合同学術講演会"]
["第1回東京支部訪問勉強会"]
["第2回東京支部訪問勉強会"]
["第3回東京支部訪問勉強会"]
["第4回東京支部訪問勉強会"]
["MRI学術講演会"]
["関東・東京支部合同研究発表大会2018"]
["第13回 ジョイントミーティング"]
["医療英会話レッスン"]